[Event "Early-Titled-Tuesday-Blitz-May-14-2024"]
[Site "Chess.com"]
[Date "2024.05.14"]
[Round "3"]
[White "Shushik"]
[Black "chessfatbear"]
[Result "0-1"]
[WhiteElo "2548"]
[BlackElo "2891"]
[TimeControl "180+1"]
[EndTime "8:29:34 PDT"]
[Termination "chessfatbear won on time"]

1. e4 {[%clk 0:03:00]} 1... c6 {[%clk 0:02:58]} 2. d4 {[%clk 0:02:59.1]} 2... d5
{[%clk 0:02:58.9]} 3. e5 {[%clk 0:02:59.1]} 3... Bf5 {[%clk 0:02:58.6]} 4. Nf3
{[%clk 0:02:58.6]} 4... e6 {[%clk 0:02:59]} 5. Be2 {[%clk 0:02:59.1]} 5... Nd7
{[%clk 0:02:58.4]} 6. O-O {[%clk 0:02:59.3]} 6... Ne7 {[%clk 0:02:58.5]} 7. Nbd2
{[%clk 0:02:58.2]} 7... a6 {[%clk 0:02:55.3]} 8. Nb3 {[%clk 0:02:51.8]} 8... Nc8
{[%clk 0:02:54.1]} 9. a4 {[%clk 0:02:49.4]} 9... Be7 {[%clk 0:02:52.9]} 10. a5
{[%clk 0:02:46.3]} 10... h6 {[%clk 0:02:52.3]} 11. Bd2 {[%clk 0:02:37.6]} 11...
Na7 {[%clk 0:02:52]} 12. Rc1 {[%clk 0:02:21.9]} 12... c5 {[%clk 0:02:41.3]} 13.
c4 {[%clk 0:02:19.2]} 13... dxc4 {[%clk 0:02:39.6]} 14. Bxc4 {[%clk 0:02:15.8]}
14... Bg4 {[%clk 0:02:24.1]} 15. Re1 {[%clk 0:02:08.8]} 15... Nc6 {[%clk
0:02:21.9]} 16. Bf4 {[%clk 0:01:43.8]} 16... cxd4 {[%clk 0:02:17.4]} 17. Nbxd4
{[%clk 0:01:42.8]} 17... Nxd4 {[%clk 0:02:14.9]} 18. Qxd4 {[%clk 0:01:42.9]}
18... Bxf3 {[%clk 0:02:04.6]} 19. gxf3 {[%clk 0:01:43.8]} 19... Qxa5 {[%clk
0:02:01]} 20. Bd2 {[%clk 0:01:25]} 20... Qb6 {[%clk 0:01:51.3]} 21. Qg4 {[%clk
0:01:23.1]} 21... g6 {[%clk 0:01:41.7]} 22. b3 {[%clk 0:01:13.8]} 22... h5
{[%clk 0:01:39.8]} 23. Qg2 {[%clk 0:01:08.4]} 23... Bb4 {[%clk 0:01:28.1]} 24.
Bxb4 {[%clk 0:01:01.4]} 24... Qxb4 {[%clk 0:01:29]} 25. Bxe6 {[%clk 0:00:51.6]}
25... fxe6 {[%clk 0:01:29.9]} 26. Qxg6+ {[%clk 0:00:51.4]} 26... Kd8 {[%clk
0:01:08.7]} 27. Red1 {[%clk 0:00:46]} 27... Qe7 {[%clk 0:01:00.6]} 28. Rd6
{[%clk 0:00:36.8]} 28... Rc8 {[%clk 0:00:38.6]} 29. Rcd1 {[%clk 0:00:36.8]}
29... Re8 {[%clk 0:00:37.5]} 30. Rxd7+ {[%clk 0:00:26.4]} 30... Qxd7 {[%clk
0:00:38.4]} 31. Rxd7+ {[%clk 0:00:09.2]} 31... Kxd7 {[%clk 0:00:39.3]} 32. Qf7+
{[%clk 0:00:09.7]} 32... Re7 {[%clk 0:00:36.2]} 33. Qxh5 {[%clk 0:00:09.8]}
33... Rc1+ {[%clk 0:00:34.1]} 34. Kg2 {[%clk 0:00:09.9]} 34... Rg7+ {[%clk
0:00:34.8]} 35. Kh3 {[%clk 0:00:10.2]} 35... Rc8 {[%clk 0:00:27.4]} 36. f4
{[%clk 0:00:06]} 36... Rf8 {[%clk 0:00:25.1]} 37. Qd1+ {[%clk 0:00:05]} 37...
Kc8 {[%clk 0:00:21.4]} 38. Qc2+ {[%clk 0:00:04.6]} 38... Kb8 {[%clk 0:00:20.7]}
0-1

[Event "Early-Titled-Tuesday-Blitz-May-14-2024"]
[Site "Chess.com"]
[Date "2024.05.14"]
[Round "3"]
[White "VirtualCoach"]
[Black "JJDAREK"]
[Result "1-0"]
[WhiteElo "2192"]
[BlackElo "2385"]
[TimeControl "180+1"]
[EndTime "8:29:35 PDT"]
[Termination "VirtualCoach won on time"]

1. e4 {[%clk 0:03:00.9]} 1... d6 {[%clk 0:02:58.6]} 2. d4 {[%clk 0:02:58.9]}
2... Nf6 {[%clk 0:02:58]} 3. Nc3 {[%clk 0:02:58.6]} 3... g6 {[%clk 0:02:57.6]}
4. Be3 {[%clk 0:02:56.3]} 4... a6 {[%clk 0:02:54.9]} 5. a4 {[%clk 0:02:49]} 5...
Bg7 {[%clk 0:02:47.5]} 6. Qd2 {[%clk 0:02:48.2]} 6... O-O {[%clk 0:02:48.1]} 7.
f3 {[%clk 0:02:47]} 7... e5 {[%clk 0:02:43.5]} 8. O-O-O {[%clk 0:02:40.5]} 8...
exd4 {[%clk 0:02:41.7]} 9. Bxd4 {[%clk 0:02:40.3]} 9... Nc6 {[%clk 0:02:42.3]}
10. Be3 {[%clk 0:02:38.9]} 10... Be6 {[%clk 0:02:32.7]} 11. g4 {[%clk
0:02:37.8]} 11... b5 {[%clk 0:02:28.9]} 12. h4 {[%clk 0:02:25.1]} 12... bxa4
{[%clk 0:02:24.1]} 13. Nxa4 {[%clk 0:02:25.4]} 13... Rb8 {[%clk 0:02:21]} 14. h5
{[%clk 0:02:18.1]} 14... Rb4 {[%clk 0:02:11.9]} 15. Nc3 {[%clk 0:02:17.1]} 15...
Qb8 {[%clk 0:02:10]} 16. hxg6 {[%clk 0:02:00.7]} 16... fxg6 {[%clk 0:02:03.4]}
17. Bh6 {[%clk 0:01:59.8]} 17... Bxh6 {[%clk 0:01:36.2]} 18. Qxh6 {[%clk
0:01:58.5]} 18... Rf7 {[%clk 0:01:32.1]} 19. g5 {[%clk 0:01:37.5]} 19... Nd7
{[%clk 0:01:24.9]} 20. Nh3 {[%clk 0:01:08.6]} 20... Rxb2 {[%clk 0:01:08.4]} 21.
Nf4 {[%clk 0:01:07.2]} 21... Nf8 {[%clk 0:01:05.3]} 22. Nxe6 {[%clk 0:01:03.5]}
22... Nxe6 {[%clk 0:01:06.2]} 23. Bc4 {[%clk 0:01:03.4]} 23... Ncd8 {[%clk
0:01:02.9]} 24. Nd5 {[%clk 0:00:53.6]} 24... Rb1+ {[%clk 0:00:50.1]} 25. Kd2
{[%clk 0:00:53]} 25... Rxd1+ {[%clk 0:00:49.4]} 26. Rxd1 {[%clk 0:00:53.9]}
26... Qb2 {[%clk 0:00:23.2]} 27. Rh1 {[%clk 0:00:40.4]} 27... Qd4+ {[%clk
0:00:20.6]} 28. Bd3 {[%clk 0:00:40.4]} 28... c5 {[%clk 0:00:12.3]} 29. Nf6+
{[%clk 0:00:39.2]} 29... Rxf6 {[%clk 0:00:10.3]} 30. gxf6 {[%clk 0:00:38.8]}
30... Qxf6 {[%clk 0:00:08.9]} 31. Qe3 {[%clk 0:00:29.6]} 31... Nc6 {[%clk
0:00:06.4]} 32. Rf1 {[%clk 0:00:27.3]} 32... Ncd4 {[%clk 0:00:06]} 33. f4 {[%clk
0:00:26.7]} 33... Nc6 {[%clk 0:00:03.7]} 34. f5 {[%clk 0:00:26.4]} 34... gxf5
{[%clk 0:00:03.6]} 35. Rxf5 {[%clk 0:00:24.4]} 35... Qh4 {[%clk 0:00:03.1]} 36.
Qg1+ {[%clk 0:00:22.8]} 36... Ng7 {[%clk 0:00:01.3]} 37. Bc4+ {[%clk 0:00:20]}
1-0

[Event "Early-Titled-Tuesday-Blitz-May-14-2024"]
[Site "Chess.com"]
[Date "2024.05.14"]
[Round "3"]
[White "blitzking1729"]
[Black "kinga2008"]
[Result "1-0"]
[WhiteElo "2754"]
[BlackElo "2518"]
[TimeControl "180+1"]
[EndTime "8:29:37 PDT"]
[Termination "blitzking1729 won by resignation"]

1. c4 {[%clk 0:03:00.9]} 1... e5 {[%clk 0:02:59.9]} 2. Nc3 {[%clk 0:03:00.1]}
2... c6 {[%clk 0:03:00.6]} 3. Nf3 {[%clk 0:02:59.6]} 3... Qc7 {[%clk 0:03:00.1]}
4. d4 {[%clk 0:02:59.1]} 4... exd4 {[%clk 0:03:00.2]} 5. Qxd4 {[%clk 0:02:59]}
5... Nf6 {[%clk 0:03:00.5]} 6. Bf4 {[%clk 0:02:58.4]} 6... Qa5 {[%clk
0:02:57.8]} 7. e3 {[%clk 0:02:52.1]} 7... Na6 {[%clk 0:02:54]} 8. a3 {[%clk
0:02:48.7]} 8... Qc5 {[%clk 0:02:49.5]} 9. Be2 {[%clk 0:02:45.4]} 9... Qxd4
{[%clk 0:02:49]} 10. Nxd4 {[%clk 0:02:45.3]} 10... Bc5 {[%clk 0:02:46.4]} 11.
Nf5 {[%clk 0:02:41.1]} 11... O-O {[%clk 0:02:44.2]} 12. b4 {[%clk 0:02:36.9]}
12... Bb6 {[%clk 0:02:33.7]} 13. Bd6 {[%clk 0:02:34]} 13... Re8 {[%clk
0:02:30.6]} 14. Ne7+ {[%clk 0:02:32.6]} 14... Kh8 {[%clk 0:02:30.5]} 15. c5
{[%clk 0:02:31.3]} 15... Bc7 {[%clk 0:02:30.3]} 16. Bxa6 {[%clk 0:02:21.5]}
16... Bxd6 {[%clk 0:02:25.3]} 17. cxd6 {[%clk 0:02:15.8]} 17... bxa6 {[%clk
0:02:24.4]} 18. O-O {[%clk 0:02:09.7]} 18... g6 {[%clk 0:02:21.4]} 19. Rfd1
{[%clk 0:02:08.6]} 19... Kg7 {[%clk 0:02:21.3]} 20. f3 {[%clk 0:02:08.3]} 20...
Ng8 {[%clk 0:02:10.7]} 21. Nxg8 {[%clk 0:02:06]} 21... Rxe3 {[%clk 0:01:43.4]}
22. Na4 {[%clk 0:01:54.1]} 22... Kxg8 {[%clk 0:01:41.6]} 23. Nc5 {[%clk
0:01:49.5]} 23... a5 {[%clk 0:01:39.5]} 24. Re1 {[%clk 0:01:49.3]} 24... Rxe1+
{[%clk 0:01:32.4]} 25. Rxe1 {[%clk 0:01:47]} 25... axb4 {[%clk 0:01:28.2]} 26.
Re8+ {[%clk 0:01:46.1]} 26... Kg7 {[%clk 0:01:28.1]} 27. axb4 {[%clk 0:01:45.8]}
27... a5 {[%clk 0:01:25.5]} 28. Nxd7 {[%clk 0:01:41.1]} 28... axb4 {[%clk
0:01:22.9]} 29. Nc5 {[%clk 0:01:32.5]} 29... Ra1+ {[%clk 0:01:06]} 30. Kf2
{[%clk 0:01:30.2]} 30... b3 {[%clk 0:00:37.5]} 31. Nxb3 {[%clk 0:01:04.2]} 31...
Ra2+ {[%clk 0:00:37]} 32. Kg3 {[%clk 0:00:53.8]} 32... Bd7 {[%clk 0:00:36.2]}
33. Re7 {[%clk 0:00:50.7]} 33... Bf5 {[%clk 0:00:27.9]} 34. d7 {[%clk
0:00:43.2]} 34... Bxd7 {[%clk 0:00:15]} 35. Rxd7 {[%clk 0:00:42.3]} 35... Rc2
{[%clk 0:00:13.7]} 36. Nd4 {[%clk 0:00:38.9]} 36... Rc4 {[%clk 0:00:13.8]} 37.
Ne6+ {[%clk 0:00:38.8]} 37... Kf6 {[%clk 0:00:14.3]} 38. Nd8 {[%clk 0:00:39.2]}
38... h5 {[%clk 0:00:12.7]} 39. Rxf7+ {[%clk 0:00:37.5]} 39... Kg5 {[%clk
0:00:13]} 40. Ne6+ {[%clk 0:00:32.1]} 40... Kh6 {[%clk 0:00:13.4]} 41. h4 {[%clk
0:00:32]} 41... c5 {[%clk 0:00:10.4]} 42. Ng5 {[%clk 0:00:32.1]} 1-0

[Event "Early-Titled-Tuesday-Blitz-May-14-2024"]
[Site "Chess.com"]
[Date "2024.05.14"]
[Round "3"]
[White "Crazy_girl99"]
[Black "PlotnikovPavel"]
[Result "1-0"]
[WhiteElo "2653"]
[BlackElo "2439"]
[TimeControl "180+1"]
[EndTime "8:29:37 PDT"]
[Termination "Crazy_girl99 won on time"]

1. e4 {[%clk 0:02:58.6]} 1... e6 {[%clk 0:03:00.1]} 2. d4 {[%clk 0:02:55.7]}
2... d5 {[%clk 0:03:00.3]} 3. e5 {[%clk 0:02:55.3]} 3... Ne7 {[%clk 0:03:00]} 4.
f4 {[%clk 0:02:52.8]} 4... Nf5 {[%clk 0:02:59.6]} 5. Nf3 {[%clk 0:02:50.9]} 5...
c5 {[%clk 0:02:59.8]} 6. c3 {[%clk 0:02:51.4]} 6... Nc6 {[%clk 0:02:57.2]} 7.
Na3 {[%clk 0:02:26]} 7... cxd4 {[%clk 0:02:51.1]} 8. cxd4 {[%clk 0:02:26]} 8...
Bxa3 {[%clk 0:02:48.7]} 9. bxa3 {[%clk 0:02:25.2]} 9... Qa5+ {[%clk 0:02:48.4]}
10. Kf2 {[%clk 0:02:06.4]} 10... Qc3 {[%clk 0:02:40.1]} 11. Bd2 {[%clk
0:02:00.7]} 11... Qxa3 {[%clk 0:02:39.6]} 12. Bb5 {[%clk 0:01:51.5]} 12... O-O
{[%clk 0:02:33.3]} 13. Bxc6 {[%clk 0:01:48.2]} 13... bxc6 {[%clk 0:02:33]} 14.
g4 {[%clk 0:01:33.6]} 14... Ne7 {[%clk 0:02:19.1]} 15. Qb3 {[%clk 0:01:19.6]}
15... Qxb3 {[%clk 0:02:17.2]} 16. axb3 {[%clk 0:01:17.5]} 16... f6 {[%clk
0:02:03.3]} 17. Bb4 {[%clk 0:01:16.1]} 17... Rf7 {[%clk 0:01:53.3]} 18. exf6
{[%clk 0:01:14.4]} 18... gxf6 {[%clk 0:01:53.1]} 19. Rhc1 {[%clk 0:01:13.6]}
19... Bb7 {[%clk 0:01:47.7]} 20. Re1 {[%clk 0:01:06.7]} 20... Ng6 {[%clk
0:01:40]} 21. Kg3 {[%clk 0:01:00.1]} 21... Bc8 {[%clk 0:01:31.5]} 22. Bc5 {[%clk
0:00:52.4]} 22... Rb8 {[%clk 0:01:27.2]} 23. b4 {[%clk 0:00:50.2]} 23... a6
{[%clk 0:01:24.6]} 24. h4 {[%clk 0:00:48.4]} 24... Rg7 {[%clk 0:01:15.8]} 25.
Rac1 {[%clk 0:00:42.8]} 25... Ne7 {[%clk 0:01:02.9]} 26. Bxe7 {[%clk 0:00:38.6]}
26... Rxe7 {[%clk 0:01:02.8]} 27. Rxc6 {[%clk 0:00:39.3]} 27... Bd7 {[%clk
0:00:51]} 28. Rxa6 {[%clk 0:00:37.4]} 28... Rxb4 {[%clk 0:00:50.5]} 29. Ra7
{[%clk 0:00:37.4]} 29... Rb3 {[%clk 0:00:44.2]} 30. Rc1 {[%clk 0:00:25.8]} 30...
e5 {[%clk 0:00:39.5]} 31. dxe5 {[%clk 0:00:23.5]} 31... Rxf3+ {[%clk 0:00:37.7]}
32. Kxf3 {[%clk 0:00:20.7]} 32... Bxg4+ {[%clk 0:00:37.6]} 33. Kxg4 {[%clk
0:00:21.2]} 33... Rxa7 {[%clk 0:00:37.6]} 34. exf6 {[%clk 0:00:18.7]} 34... Kf7
{[%clk 0:00:36.1]} 35. Kf5 {[%clk 0:00:18.4]} 35... Rd7 {[%clk 0:00:36.1]} 36.
Re1 {[%clk 0:00:16.4]} 36... d4 {[%clk 0:00:17.3]} 37. Rg1 {[%clk 0:00:16.4]}
37... d3 {[%clk 0:00:14.7]} 38. Rg7+ {[%clk 0:00:16]} 38... Ke8 {[%clk
0:00:15.2]} 39. Ke6 {[%clk 0:00:16]} 39... Rf7 {[%clk 0:00:08.7]} 40. Rxf7
{[%clk 0:00:15]} 40... d2 {[%clk 0:00:09.1]} 41. Rd7 {[%clk 0:00:15.4]} 1-0

[Event "Early-Titled-Tuesday-Blitz-May-14-2024"]
[Site "Chess.com"]
[Date "2024.05.14"]
[Round "3"]
[White "yonaltimur"]
[Black "emiliocordova"]
[Result "0-1"]
[WhiteElo "2376"]
[BlackElo "2892"]
[TimeControl "180+1"]
[EndTime "8:29:37 PDT"]
[Termination "emiliocordova won on time"]

1. e4 {[%clk 0:03:00.9]} 1... c5 {[%clk 0:02:59.5]} 2. Nf3 {[%clk 0:03:00.5]}
2... d6 {[%clk 0:02:59.9]} 3. Bb5+ {[%clk 0:02:59.5]} 3... Nd7 {[%clk
0:02:59.5]} 4. O-O {[%clk 0:02:59.1]} 4... a6 {[%clk 0:02:59.1]} 5. Bd3 {[%clk
0:02:58.9]} 5... b5 {[%clk 0:02:57.3]} 6. c3 {[%clk 0:02:58.9]} 6... Bb7 {[%clk
0:02:57.4]} 7. Re1 {[%clk 0:02:58.9]} 7... Ne5 {[%clk 0:02:57.6]} 8. Bc2 {[%clk
0:02:55.5]} 8... c4 {[%clk 0:02:57.3]} 9. Nxe5 {[%clk 0:02:45.1]} 9... dxe5
{[%clk 0:02:58.2]} 10. d3 {[%clk 0:02:45.4]} 10... cxd3 {[%clk 0:02:54.8]} 11.
Bxd3 {[%clk 0:02:43.9]} 11... e6 {[%clk 0:02:55.1]} 12. Qe2 {[%clk 0:02:40.2]}
12... Bc5 {[%clk 0:02:52.3]} 13. a4 {[%clk 0:02:39.9]} 13... bxa4 {[%clk
0:02:50.6]} 14. Rxa4 {[%clk 0:02:39.1]} 14... Qc8 {[%clk 0:02:45.2]} 15. Be3
{[%clk 0:02:33.6]} 15... Bxe3 {[%clk 0:02:44.5]} 16. Qxe3 {[%clk 0:02:34.5]}
16... Nf6 {[%clk 0:02:43.4]} 17. Nd2 {[%clk 0:02:29.9]} 17... O-O {[%clk
0:02:41.4]} 18. f3 {[%clk 0:02:29.6]} 18... Rd8 {[%clk 0:02:40.5]} 19. Nc4
{[%clk 0:02:24.8]} 19... Qc7 {[%clk 0:02:40.2]} 20. Rea1 {[%clk 0:02:22.9]}
20... Rab8 {[%clk 0:02:37.4]} 21. Bf1 {[%clk 0:02:16.5]} 21... h6 {[%clk
0:02:34.9]} 22. Qb6 {[%clk 0:01:53.9]} 22... Qe7 {[%clk 0:02:18.2]} 23. Nxe5
{[%clk 0:01:36.6]} 23... Bxe4 {[%clk 0:02:13.4]} 24. Qf2 {[%clk 0:01:36]} 24...
Bb7 {[%clk 0:02:06.7]} 25. Bxa6 {[%clk 0:01:33.4]} 25... Qc7 {[%clk 0:02:05.7]}
26. Bxb7 {[%clk 0:01:30.1]} 26... Qxe5 {[%clk 0:02:05]} 27. Ba6 {[%clk
0:01:22.2]} 27... Nd7 {[%clk 0:01:54.4]} 28. Bf1 {[%clk 0:01:17.6]} 28... Nb6
{[%clk 0:01:40]} 29. Ra6 {[%clk 0:01:11.4]} 29... Nd5 {[%clk 0:01:38]} 30. R6a5
{[%clk 0:00:57.6]} 30... Qf4 {[%clk 0:01:33.5]} 31. g3 {[%clk 0:00:56.5]} 31...
Qc7 {[%clk 0:01:32.4]} 32. f4 {[%clk 0:00:55.4]} 32... Nf6 {[%clk 0:01:30.2]}
33. h3 {[%clk 0:00:35.2]} 33... Ne4 {[%clk 0:01:07.6]} 34. Qe3 {[%clk
0:00:32.8]} 34... Nd2 {[%clk 0:01:04.9]} 35. b4 {[%clk 0:00:19.8]} 35... Rbc8
{[%clk 0:00:56.6]} 36. Rc5 {[%clk 0:00:17.6]} 36... Qd6 {[%clk 0:00:52.9]} 37.
Rxc8 {[%clk 0:00:16]} 37... Rxc8 {[%clk 0:00:53.8]} 38. Rd1 {[%clk 0:00:15.4]}
38... Rd8 {[%clk 0:00:52.7]} 39. Be2 {[%clk 0:00:14.7]} 39... f6 {[%clk
0:00:40.3]} 40. b5 {[%clk 0:00:14.3]} 40... g5 {[%clk 0:00:39.7]} 41. fxg5
{[%clk 0:00:11.8]} 41... hxg5 {[%clk 0:00:39.5]} 42. c4 {[%clk 0:00:11.8]} 42...
Qb4 {[%clk 0:00:32.2]} 43. b6 {[%clk 0:00:08.7]} 43... e5 {[%clk 0:00:30.1]} 44.
Rxd2 {[%clk 0:00:04.8]} 44... Rxd2 {[%clk 0:00:29.3]} 45. Qxd2 {[%clk
0:00:05.7]} 45... Qxd2 {[%clk 0:00:28.4]} 0-1

[Event "Early-Titled-Tuesday-Blitz-May-14-2024"]
[Site "Chess.com"]
[Date "2024.05.14"]
[Round "3"]
[White "Rud_Makarian"]
[Black "ArtemDyachuk"]
[Result "1-0"]
[WhiteElo "2952"]
[BlackElo "2702"]
[TimeControl "180+1"]
[EndTime "8:29:38 PDT"]
[Termination "Rud_Makarian won by checkmate"]

1. d4 {[%clk 0:03:00.4]} 1... Nf6 {[%clk 0:02:57.4]} 2. c4 {[%clk 0:03:00.9]}
2... g6 {[%clk 0:02:57.7]} 3. Nc3 {[%clk 0:03:01.2]} 3... Bg7 {[%clk 0:02:58.1]}
4. e4 {[%clk 0:03:01.6]} 4... d6 {[%clk 0:02:58]} 5. Be2 {[%clk 0:03:02.5]} 5...
O-O {[%clk 0:02:58.1]} 6. Be3 {[%clk 0:03:03.3]} 6... e5 {[%clk 0:02:56]} 7. d5
{[%clk 0:03:04.1]} 7... a5 {[%clk 0:02:49.4]} 8. g4 {[%clk 0:03:04.2]} 8... Na6
{[%clk 0:02:39.4]} 9. g5 {[%clk 0:03:04.7]} 9... Nd7 {[%clk 0:02:39.7]} 10. h4
{[%clk 0:03:05.4]} 10... Ndc5 {[%clk 0:02:40]} 11. h5 {[%clk 0:03:05.7]} 11...
f5 {[%clk 0:02:38.7]} 12. gxf6 {[%clk 0:03:05.5]} 12... Qxf6 {[%clk 0:02:35.5]}
13. hxg6 {[%clk 0:03:05.8]} 13... hxg6 {[%clk 0:02:32.9]} 14. Nf3 {[%clk
0:03:02.3]} 14... Bg4 {[%clk 0:02:22.4]} 15. Ng5 {[%clk 0:03:01.1]} 15... Bxe2
{[%clk 0:01:55.6]} 16. Qxe2 {[%clk 0:03:02]} 16... a4 {[%clk 0:01:42.8]} 17.
O-O-O {[%clk 0:02:58.5]} 17... Qe7 {[%clk 0:01:28.8]} 18. Qg4 {[%clk 0:02:43]}
18... a3 {[%clk 0:01:26.2]} 19. Qh4 {[%clk 0:02:19]} 19... axb2+ {[%clk
0:01:19.7]} 20. Kb1 {[%clk 0:02:16.6]} 20... Rf6 {[%clk 0:01:01.6]} 21. Rh3
{[%clk 0:02:16.4]} 21... Kf8 {[%clk 0:00:31.7]} 22. Nh7+ {[%clk 0:02:07.2]}
22... Ke8 {[%clk 0:00:29.1]} 23. Bg5 {[%clk 0:02:04.7]} 23... Nd7 {[%clk
0:00:22]} 24. Nxf6+ {[%clk 0:01:47.1]} 24... Nxf6 {[%clk 0:00:22.9]} 25. Rf3
{[%clk 0:01:46]} 25... Kf7 {[%clk 0:00:11.6]} 26. Rdd3 {[%clk 0:01:36.3]} 26...
Rh8 {[%clk 0:00:06]} 27. Bxf6 {[%clk 0:01:34.5]} 27... Qxf6 {[%clk 0:00:02]} 28.
Rxf6+ {[%clk 0:01:33.6]} 28... Bxf6 {[%clk 0:00:02.4]} 29. Qg4 {[%clk
0:01:28.8]} 29... Nc5 {[%clk 0:00:02]} 30. Rh3 {[%clk 0:01:28.8]} 30... Re8
{[%clk 0:00:01.8]} 31. Na4 {[%clk 0:01:07.6]} 31... Kg8 {[%clk 0:00:02.7]} 32.
Qxg6+ {[%clk 0:00:47]} 32... Bg7 {[%clk 0:00:02.3]} 33. Qxe8+ {[%clk 0:00:38.8]}
33... Bf8 {[%clk 0:00:02.3]} 34. Rg3+ {[%clk 0:00:25.5]} 34... Kh8 {[%clk
0:00:02.1]} 35. Qh5+ {[%clk 0:00:17]} 35... Bh6 {[%clk 0:00:01.5]} 36. Qxh6#
{[%clk 0:00:17.9]} 1-0

[Event "Early-Titled-Tuesday-Blitz-May-14-2024"]
[Site "Chess.com"]
[Date "2024.05.14"]
[Round "3"]
[White "maurovargas01"]
[Black "ab-lsv"]
[Result "0-1"]
[WhiteElo "1962"]
[BlackElo "2359"]
[TimeControl "180+1"]
[EndTime "8:29:39 PDT"]
[Termination "ab-lsv won on time"]

1. e4 {[%clk 0:03:00.9]} 1... c6 {[%clk 0:02:59.5]} 2. Nc3 {[%clk 0:02:59.8]}
2... d5 {[%clk 0:03:00.4]} 3. d3 {[%clk 0:03:00]} 3... g6 {[%clk 0:02:58.4]} 4.
Bf4 {[%clk 0:02:56.9]} 4... Bg7 {[%clk 0:02:58.3]} 5. Qd2 {[%clk 0:02:55]} 5...
e5 {[%clk 0:02:57]} 6. Bg3 {[%clk 0:02:54.2]} 6... Be6 {[%clk 0:02:53.9]} 7.
Nge2 {[%clk 0:02:49.7]} 7... d4 {[%clk 0:02:40.2]} 8. Nb1 {[%clk 0:02:42.4]}
8... Qb6 {[%clk 0:02:34.5]} 9. Qc1 {[%clk 0:02:39.1]} 9... c5 {[%clk 0:02:31.4]}
10. Nd2 {[%clk 0:02:38.5]} 10... Nc6 {[%clk 0:02:30.4]} 11. b3 {[%clk
0:02:36.3]} 11... Qc7 {[%clk 0:02:17.9]} 12. a3 {[%clk 0:02:25.5]} 12... Nf6
{[%clk 0:02:10.4]} 13. Rb1 {[%clk 0:02:18.9]} 13... b5 {[%clk 0:02:02.8]} 14. b4
{[%clk 0:02:17.2]} 14... c4 {[%clk 0:02:02.5]} 15. dxc4 {[%clk 0:02:11.8]} 15...
bxc4 {[%clk 0:02:02.6]} 16. b5 {[%clk 0:02:11.8]} 16... c3 {[%clk 0:01:43.9]}
17. Nb3 {[%clk 0:01:53]} 17... Bxb3 {[%clk 0:01:32.6]} 18. Rxb3 {[%clk
0:01:43.2]} 18... Na5 {[%clk 0:01:26.2]} 19. Rb4 {[%clk 0:01:34]} 19... Nxe4
{[%clk 0:01:20.2]} 20. h3 {[%clk 0:00:41]} 20... Nxg3 {[%clk 0:01:16.1]} 21.
Nxg3 {[%clk 0:00:41.8]} 21... O-O {[%clk 0:01:16.4]} 22. Bd3 {[%clk 0:00:32.2]}
22... Nb7 {[%clk 0:01:12.9]} 23. O-O {[%clk 0:00:27.6]} 23... Nc5 {[%clk
0:01:12.7]} 24. Rc4 {[%clk 0:00:23.3]} 24... Qb6 {[%clk 0:01:10.1]} 25. a4
{[%clk 0:00:14.8]} 25... Nxd3 {[%clk 0:01:06.6]} 26. cxd3 {[%clk 0:00:15.7]}
26... Rfc8 {[%clk 0:01:03]} 27. Ne4 {[%clk 0:00:13.5]} 27... a6 {[%clk
0:00:56.4]} 28. Qc2 {[%clk 0:00:07.5]} 28... axb5 {[%clk 0:00:47.2]} 29. axb5
{[%clk 0:00:08.4]} 29... f5 {[%clk 0:00:41.9]} 30. Ng3 {[%clk 0:00:04.6]} 30...
Qxb5 {[%clk 0:00:39.9]} 31. Rb1 {[%clk 0:00:03.2]} 31... Qd7 {[%clk 0:00:36.6]}
32. Rcb4 {[%clk 0:00:02.7]} 32... Rc7 {[%clk 0:00:34.7]} 33. Rb8+ {[%clk
0:00:01.9]} 33... Rxb8 {[%clk 0:00:34.7]} 34. Rxb8+ {[%clk 0:00:02.8]} 34... Bf8
{[%clk 0:00:17]} 35. Qb3+ {[%clk 0:00:02.9]} 35... Kg7 {[%clk 0:00:16.1]} 0-1

[Event "Early-Titled-Tuesday-Blitz-May-14-2024"]
[Site "Chess.com"]
[Date "2024.05.14"]
[Round "3"]
[White "MyDream003"]
[Black "motivated_bishop"]
[Result "1-0"]
[WhiteElo "2839"]
[BlackElo "2502"]
[TimeControl "180+1"]
[EndTime "8:29:40 PDT"]
[Termination "MyDream003 won by resignation"]

1. e4 {[%clk 0:02:59.5]} 1... e5 {[%clk 0:02:59.7]} 2. Nf3 {[%clk 0:02:59.8]}
2... Nc6 {[%clk 0:03:00]} 3. Bc4 {[%clk 0:03:00]} 3... Bc5 {[%clk 0:02:59.6]} 4.
c3 {[%clk 0:02:59.9]} 4... Nf6 {[%clk 0:02:59.9]} 5. d3 {[%clk 0:03:00.1]} 5...
d6 {[%clk 0:02:56.8]} 6. h3 {[%clk 0:03:00.2]} 6... a6 {[%clk 0:02:56.8]} 7. O-O
{[%clk 0:02:59.5]} 7... h6 {[%clk 0:02:53.8]} 8. Be3 {[%clk 0:02:53.6]} 8... Ba7
{[%clk 0:02:50.7]} 9. a4 {[%clk 0:02:46.8]} 9... O-O {[%clk 0:02:49.5]} 10. Bxa7
{[%clk 0:02:41.4]} 10... Rxa7 {[%clk 0:02:49.4]} 11. Nbd2 {[%clk 0:02:42.1]}
11... Be6 {[%clk 0:02:49.4]} 12. Bxe6 {[%clk 0:02:34.1]} 12... fxe6 {[%clk
0:02:49.3]} 13. Re1 {[%clk 0:02:32.6]} 13... Qe8 {[%clk 0:02:49.2]} 14. Nf1
{[%clk 0:02:32.9]} 14... Ra8 {[%clk 0:02:46]} 15. Ng3 {[%clk 0:02:33.2]} 15...
Nh5 {[%clk 0:02:19.6]} 16. Nxh5 {[%clk 0:02:29.6]} 16... Qxh5 {[%clk 0:02:19.1]}
17. Nh2 {[%clk 0:02:26.1]} 17... Qf7 {[%clk 0:01:53.9]} 18. Qf3 {[%clk
0:02:25.7]} 18... Qe8 {[%clk 0:01:34.7]} 19. Qg4 {[%clk 0:02:22.3]} 19... Rf4
{[%clk 0:01:33.9]} 20. Qe2 {[%clk 0:02:20.6]} 20... Qg6 {[%clk 0:01:26.6]} 21.
g3 {[%clk 0:02:19.1]} 21... Raf8 {[%clk 0:01:25]} 22. Rf1 {[%clk 0:02:19.7]}
22... d5 {[%clk 0:01:18.8]} 23. Rae1 {[%clk 0:02:13.8]} 23... h5 {[%clk
0:01:14.2]} 24. Kh1 {[%clk 0:02:11.7]} 24... R4f6 {[%clk 0:01:12]} 25. Kg2
{[%clk 0:02:01.9]} 25... d4 {[%clk 0:01:08.9]} 26. Rd1 {[%clk 0:01:44.7]} 26...
Ne7 {[%clk 0:01:06.4]} 27. Kh1 {[%clk 0:01:25.2]} 27... Qe8 {[%clk 0:01:06.1]}
28. cxd4 {[%clk 0:01:11.6]} 28... exd4 {[%clk 0:01:05.4]} 29. Qc2 {[%clk
0:01:12.1]} 29... Qd7 {[%clk 0:00:58.5]} 30. f4 {[%clk 0:01:09.5]} 30... e5
{[%clk 0:00:44.7]} 31. f5 {[%clk 0:01:06.4]} 31... g6 {[%clk 0:00:42.1]} 32. g4
{[%clk 0:01:06.5]} 32... hxg4 {[%clk 0:00:41.2]} 33. hxg4 {[%clk 0:00:59.9]}
33... gxf5 {[%clk 0:00:38.2]} 34. gxf5 {[%clk 0:01:00.6]} 34... Rh6 {[%clk
0:00:30.4]} 35. Qd2 {[%clk 0:00:54]} 35... Kh7 {[%clk 0:00:22.6]} 36. Rg1 {[%clk
0:00:49]} 36... Ng8 {[%clk 0:00:15.2]} 37. Rg3 {[%clk 0:00:42.7]} 37... Nf6
{[%clk 0:00:15.3]} 38. Rdg1 {[%clk 0:00:41.9]} 38... Rf7 {[%clk 0:00:15.7]} 39.
Qxh6+ {[%clk 0:00:29.4]} 39... Kxh6 {[%clk 0:00:15.4]} 40. Rh3+ {[%clk
0:00:29.4]} 40... Nh5 {[%clk 0:00:15.3]} 41. Ng4+ {[%clk 0:00:29.5]} 41... Kg5
{[%clk 0:00:15.5]} 42. Nxe5+ {[%clk 0:00:29.2]} 1-0